fUSD/lending_fUSD_20250708
["ID","MTS","AMOUNT","RATE_DAILY","PERIOD"]
[370346705,1751971863621,-460.0,0.00027965,3]
[370346706,1751971863631,-460.0,0.00027965,3]
[370346707,1751971863640,-460.0,0.00027965,3]
[370346708,1751971863650,-460.0,0.00027965,3]
[370346709,1751971863659,-460.0,0.00027965,3]
[370346710,1751971863670,-460.0,0.00027965,3]
[370346711,1751971863680,-151.0,0.00027965,7]
[370346712,1751971863690,-151.0,0.00027965,7]
[370346713,1751971863699,-151.0,0.00027965,7]
[370346714,1751971863709,-460.0,0.00027965,3]
[370346715,1751971863718,-460.0,0.00027965,3]
[370346716,1751971863728,-460.0,0.00027965,3]
[370346717,1751971863738,-678.06,0.00027965,3]
[370346718,1751971863747,-460.0,0.00027965,3]
[370346719,1751971863758,-573.79,0.00027965,3]
[370346720,1751971863768,-493.71,0.00027965,3]
[370346721,1751971863778,-460.0,0.00027965,3]
[370346722,1751971863788,-151.0,0.00027965,7]
[370346723,1751971863798,-151.0,0.00027965,7]
[370346724,1751971863807,-460.0,0.00027965,3]
[370346725,1751971863817,-278.637567,0.00027965,7]
[370346726,1751971863826,-460.0,0.00027965,3]
[370346727,1751971863836,-527.00617424,0.00027965,3]
[370346728,1751971863846,-460.0,0.00027965,3]
[370346729,1751971863857,-460.0,0.00027965,3]
[370346730,1751971863867,-460.0,0.00027965,3]
[370346731,1751971863877,-460.0,0.00027965,3]
[370346732,1751971863887,-151.0,0.00027965,7]
[370346733,1751971863897,-151.0,0.00027965,7]
[370346734,1751971863907,-151.0,0.00027965,7]
[370346735,1751971863917,-460.0,0.00027965,3]
[370346736,1751971863927,-151.0,0.00027965,7]
[370346737,1751971863937,-225.032596,0.00027965,7]
[370346738,1751971863947,-460.0,0.00027965,3]
[370346739,1751971863958,-500.0,0.00027965,3]
[370346740,1751971863968,-460.0,0.00027965,3]
[370346741,1751971863978,-562.31,0.00027965,3]
[370346742,1751971863988,-460.0,0.00027965,3]
[370346743,1751971863998,-460.0,0.00027965,3]
[370346744,1751971864007,-460.0,0.00027965,3]
[370346745,1751971864017,-863.42,0.00027965,3]
[370346746,1751971864028,-460.0,0.00027965,3]
[370346747,1751971864038,-151.0,0.00027965,7]
[370346748,1751971864049,-151.0,0.00027965,7]
[370346749,1751971864060,-460.0,0.00027965,3]
[370346750,1751971864070,-151.0,0.00027965,7]
[370346751,1751971864080,-151.0,0.00027965,7]
[370346752,1751971864091,-460.0,0.00027965,3]
[370346753,1751971864101,-460.0,0.00027965,3]
[370346754,1751971864111,-234.555655,0.00027965,7]
[370346755,1751971864122,-481.85568252,0.00027965,3]
[370346756,1751971864133,-234.555655,0.00027965,7]
[370346757,1751971864144,-496.03,0.00027965,3]
[370346758,1751971864153,-234.555655,0.00027965,7]
[370346759,1751971864163,-234.555655,0.00027965,7]
[370346760,1751971864173,-460.0,0.00027965,3]
[370346761,1751971864183,-460.0,0.00027965,3]
[370346762,1751971864193,-460.0,0.00027965,3]
[370346763,1751971864202,-460.0,0.00027965,3]
[370346764,1751971864212,-575.84,0.00027965,3]
[370346765,1751971864223,-257.85429,0.00027965,7]
[370346766,1751971864233,-488.1,0.00027965,3]
[370346767,1751971864243,-554.86572742,0.00027965,3]
[370346768,1751971864253,-151.0,0.00027965,7]
[370346769,1751971864263,-460.0,0.00027965,3]
[370346770,1751971864273,-151.0,0.00027965,7]
[370346771,1751971864283,-151.0,0.00027965,7]
[370346772,1751971864293,-151.0,0.00027965,7]
[370346773,1751971864303,-159.27243,0.00027965,7]
[370346774,1751971864312,-501.43,0.00027965,3]
[370346775,1751971864322,-460.0,0.00027965,3]
[370346776,1751971864331,-460.0,0.00027965,3]
[370346777,1751971864340,-460.0,0.00027965,3]
[370346778,1751971864350,-151.0,0.00027965,7]
[370346779,1751971864361,-151.0,0.00027965,7]
[370346780,1751971864371,-460.0,0.00027965,3]
[370346781,1751971864381,-538.01,0.00027965,3]
[370346782,1751971864390,-1053.86,0.00027965,3]
[370346783,1751971864400,-460.0,0.00027965,3]
[370346784,1751971864410,-460.0,0.00027965,3]
[370346785,1751971864420,-606.27,0.00027965,3]
[370346786,1751971864429,-460.0,0.00027965,3]
[370346787,1751971864439,-460.0,0.00027965,3]
[370346788,1751971864448,-460.0,0.00027965,3]
[370346789,1751971864458,-460.0,0.00027965,3]
[370346790,1751971864467,-151.0,0.00027965,7]
[370346791,1751971864476,-460.0,0.00027965,3]
[370346792,1751971864486,-460.0,0.00027965,3]
[370346793,1751971864495,-664.97,0.00027965,3]
[370346794,1751971864505,-495.3,0.00027965,3]
[370346795,1751971864514,-499.43,0.00027965,3]
[370346796,1751971864523,-460.0,0.00027965,3]
[370346797,1751971864533,-460.0,0.00027965,3]
[370346798,1751971864542,-385.80604448,0.00027965,3]
[370346799,1751971864551,-460.0,0.00027965,3]
[370346800,1751971864561,-637.31,0.00027965,3]
[370346801,1751971864571,-500.0,0.00027965,2]
[370346802,1751971864580,-151.0,0.00027965,7]
[370346803,1751971864591,-460.0,0.00027965,3]
[370346804,1751971864600,-151.0,0.00027965,7]
[370346805,1751971864611,-151.0,0.00027965,7]
[370346806,1751971864620,-460.0,0.00027965,3]
[370346807,1751971864630,-537.58,0.00027965,3]
[370346808,1751971864639,-498.71,0.00027965,3]
[370346809,1751971864649,-460.0,0.00027965,3]
[370346810,1751971864658,-460.0,0.00027965,3]
[370346811,1751971864668,-460.0,0.00027965,3]
[370346812,1751971864678,-460.0,0.00027965,3]
[370346813,1751971864687,-203.65293638,0.00027965,3]
[370346814,1751971864696,-460.0,0.00027965,3]
[370346815,1751971864706,-563.79,0.00027965,3]
[370346816,1751971864715,-460.0,0.00027965,3]
[370346817,1751971864725,-460.0,0.00027965,3]
[370346818,1751971864734,-151.0,0.00027965,7]
[370346819,1751971864743,-525.78,0.00027965,3]
[370346820,1751971864752,-151.0,0.00027965,7]
[370346821,1751971864762,-460.0,0.00027965,3]
[370346822,1751971864772,-151.0,0.00027965,7]
[370346823,1751971864781,-530.464929,0.00027965,7]
[370346824,1751971864791,-151.0,0.00027965,7]
[370346825,1751971864800,-151.0,0.00027965,7]
[370346826,1751971864809,-189.98479,0.00027965,7]
[370346827,1751971864821,-530.464929,0.00027965,7]
[370346828,1751971864831,-460.0,0.00027965,3]
[370346829,1751971864841,-460.0,0.00027965,3]
[370346830,1751971864851,-460.0,0.00027965,3]
[370346831,1751971864861,-460.0,0.00027965,3]
[370346832,1751971864870,-460.0,0.00027965,3]
[370346833,1751971864880,-460.0,0.00027965,3]
[370346834,1751971864889,-460.0,0.00027965,3]
[370346835,1751971864898,-460.0,0.00027965,3]
[370346836,1751971864908,-460.0,0.00027965,3]
[370346837,1751971864917,-651.53,0.00027965,3]
[370346838,1751971864927,-525.58,0.00027965,3]
[370346839,1751971864936,-460.0,0.00027965,3]
[370346840,1751971864946,-460.0,0.00027965,3]
[370346841,1751971864955,-300.0,0.00027965,3]
[370346842,1751971864966,-460.0,0.00027965,3]
[370346843,1751971864975,-637.29,0.00027965,3]
[370346844,1751971864985,-460.0,0.00027965,3]
[370346845,1751971864995,-1006.49,0.00027965,3]
[370346846,1751971865005,-460.0,0.00027965,3]
[370346847,1751971865015,-565.12,0.00027965,3]
[370346848,1751971865024,-460.0,0.00027965,3]
[370346849,1751971865034,-719.57,0.00027965,3]
[370346850,1751971865044,-460.0,0.00027965,3]
[370346851,1751971865055,-294.65398424,0.00027965,3]
[370346852,1751971865065,-494.01,0.00027965,3]
[370346853,1751971865075,-460.0,0.00027965,3]
[370346854,1751971865084,-460.0,0.00027965,3]
[370346855,1751971865093,-460.0,0.00027965,3]
[370346856,1751971865103,-1270.0,0.00027965,3]
[370346857,1751971865113,-662.38,0.00027965,3]
[370346858,1751971865122,-460.0,0.00027965,3]
[370346859,1751971865132,-460.0,0.00027965,3]
[370346860,1751971865143,-291.764241,0.00027965,7]
[370346861,1751971865152,-460.0,0.00027965,3]
[370346862,1751971865161,-460.0,0.00027965,3]
[370346863,1751971865171,-460.0,0.00027965,3]
[370346864,1751971865180,-1009.16,0.00027965,3]
[370346865,1751971865189,-460.0,0.00027965,3]
[370346866,1751971865199,-460.0,0.00027965,3]
[370346867,1751971865208,-460.0,0.00027965,3]
[370346868,1751971865218,-460.0,0.00027965,3]
[370346869,1751971865228,-465.02,0.00027965,3]
[370346870,1751971865237,-1689.23,0.00027965,3]
[370346871,1751971865246,-460.0,0.00027965,3]
[370346872,1751971865256,-460.0,0.00027965,3]
[370346873,1751971865266,-460.0,0.00027965,3]
[370346874,1751971865275,-460.0,0.00027965,3]
[370346875,1751971865285,-460.0,0.00027965,3]
[370346876,1751971865294,-687.157417,0.00027965,7]
[370346877,1751971865303,-687.157417,0.00027965,7]
[370346878,1751971865312,-687.157417,0.00027965,7]
[370346879,1751971865322,-460.0,0.00027965,3]
[370346880,1751971865331,-151.0,0.00027965,7]
[370346881,1751971865340,-687.157417,0.00027965,7]
[370346882,1751971865350,-687.157417,0.00027965,7]
[370346883,1751971865361,-687.157417,0.00027965,7]
[370346884,1751971865370,-524.17,0.00027965,3]
[370346885,1751971865379,-460.0,0.00027965,3]
[370346886,1751971865389,-460.0,0.00027965,3]
[370346887,1751971865398,-460.0,0.00027965,3]
[370346888,1751971865408,-535.55,0.00027965,3]
[370346889,1751971865418,-504.96,0.00027965,3]
[370346890,1751971865428,-460.0,0.00027965,3]
[370346891,1751971865437,-738.26,0.00027965,3]
[370346892,1751971865447,-500.0,0.00027965,3]
[370346893,1751971865457,-460.0,0.00027965,3]
[370346894,1751971865466,-1376.1,0.00027965,3]
[370346895,1751971865476,-460.0,0.00027965,3]
[370346896,1751971865486,-1604.92,0.00027965,3]
[370346897,1751971865496,-639.33,0.00027965,3]
[370346898,1751971865506,-1417.65,0.00027965,3]
[370346899,1751971865515,-346.16522076,0.00027965,3]
[370346900,1751971865525,-460.0,0.00027965,3]
[370346901,1751971865535,-460.0,0.00027965,3]
[370346902,1751971865545,-460.0,0.00027965,3]
[370346903,1751971865555,-460.0,0.00027965,3]
[370346904,1751971865564,-460.0,0.00027965,3]
[370346905,1751971865574,-460.0,0.00027965,3]
[370346906,1751971865584,-460.0,0.00027965,3]
[370346907,1751971865594,-1949.23,0.00027965,3]
[370346908,1751971865686,-460.0,0.00027965,3]
[370346909,1751971865696,-460.0,0.00027965,3]
[370346910,1751971865705,-557.76,0.00027965,3]
[370346911,1751971865716,-808.91,0.00027965,3]
[370346912,1751971865726,-460.0,0.00027965,3]
[370346913,1751971865736,-513.29,0.00027965,3]
[370346914,1751971865746,-552.55,0.00027965,3]
[370346915,1751971865756,-460.0,0.00027965,3]
[370346916,1751971865766,-977.332697,0.00027965,7]
[370346917,1751971865777,-977.332697,0.00027965,7]
[370346918,1751971865786,-339.93436773,0.00027965,3]
[370346919,1751971865797,-460.0,0.00027965,3]
[370346920,1751971865807,-460.0,0.00027965,3]
[370346921,1751971865817,-460.0,0.00027965,3]
[370346922,1751971865827,-1056.53,0.00027965,3]
[370346923,1751971865836,-460.0,0.00027965,3]
[370346924,1751971865845,-1163.17,0.00027965,3]
[370346925,1751971865855,-1065.76,0.00027965,3]
[370346926,1751971865866,-539.95,0.00027965,3]
[370346927,1751971865875,-896.04,0.00027965,3]
[370346928,1751971865884,-460.0,0.00027965,3]
[370346929,1751971865893,-460.0,0.00027965,3]
[370346930,1751971865902,-460.0,0.00027965,3]
[370346931,1751971865912,-500.0,0.00027965,3]
[370346932,1751971865921,-869.81,0.00027965,3]
[370346933,1751971865931,-460.0,0.00027965,3]
[370346934,1751971865940,-460.0,0.00027965,3]
[370346935,1751971865949,-460.0,0.00027965,3]
[370346936,1751971865958,-460.0,0.00027965,3]
[370346937,1751971865967,-670.69,0.00027965,3]
[370346938,1751971865977,-460.0,0.00027965,3]
[370346939,1751971865986,-460.0,0.00027965,3]
[370346940,1751971865996,-480.12,0.00027965,3]
[370346941,1751971866006,-460.0,0.00027965,3]
[370346942,1751971866015,-460.0,0.00027965,3]
[370346943,1751971866024,-460.0,0.00027965,3]
[370346944,1751971866034,-460.0,0.00027965,3]
[370346945,1751971866043,-460.0,0.00027965,3]
[370346946,1751971866057,-460.0,0.00027965,3]
[370346947,1751971866066,-460.0,0.00027965,3]
[370346948,1751971866076,-460.0,0.00027965,3]
[370346949,1751971866085,-460.0,0.00027965,3]
[370346950,1751971866095,-460.0,0.00027965,3]
[370346951,1751971866105,-460.0,0.00027965,3]
[370346952,1751971866116,-460.0,0.00027965,3]
[370346953,1751971866127,-460.0,0.00027965,3]
[370346954,1751971866136,-460.0,0.00027965,3]
[370346955,1751971866146,-460.0,0.00027965,3]
[370346956,1751971866156,-159.106113,0.00027965,7]
[370346957,1751971866165,-460.0,0.00027965,3]
[370346958,1751971866175,-460.0,0.00027965,3]
[370346959,1751971866184,-460.0,0.00027965,3]
[370346960,1751971866193,-460.0,0.00027965,3]
[370346961,1751971866203,-460.0,0.00027965,3]
[370346962,1751971866212,-561.7420028,0.00027965,3]
[370346963,1751971866222,-460.0,0.00027965,3]
[370346964,1751971866231,-460.0,0.00027965,3]
[370346965,1751971866240,-498.89,0.00027965,3]
[370346966,1751971866249,-460.0,0.00027965,3]
[370346967,1751971866259,-479.56,0.00027965,3]
[370346968,1751971866268,-494.03604869,0.00027965,3]
[370346969,1751971866277,-730.49,0.00027965,3]
[370346970,1751971866287,-460.0,0.00027965,3]
[370346971,1751971866296,-460.0,0.00027965,3]
[370346972,1751971866306,-460.0,0.00027965,3]
[370346973,1751971866315,-460.0,0.00027965,3]
[370346974,1751971866325,-460.0,0.00027965,3]
[370346975,1751971866334,-151.0,0.00027965,7]
[370346976,1751971866343,-460.0,0.00027965,3]
[370346977,1751971866352,-460.0,0.00027965,3]
[370346978,1751971866363,-461.6,0.00027965,3]
[370346979,1751971866372,-460.0,0.00027965,3]
[370346980,1751971866381,-2311.674624,0.00027965,7]
[370346981,1751971866391,-460.0,0.00027965,3]
[370346982,1751971866401,-2311.674624,0.00027965,7]
[370346983,1751971866411,-151.0,0.00027965,7]
[370346984,1751971866420,-546.93,0.00027965,3]
[370346985,1751971866430,-460.0,0.00027965,3]
[370346986,1751971866439,-460.0,0.00027965,3]
[370346987,1751971866448,-460.0,0.00027965,3]
[370346988,1751971866457,-460.0,0.00027965,3]
[370346989,1751971866467,-680.46,0.00027965,3]
[370346990,1751971866476,-247.87471951,0.00027965,3]
[370346991,1751971866486,-460.0,0.00027965,3]
[370346992,1751971866495,-524.08,0.00027965,3]
[370346993,1751971866504,-460.0,0.00027965,3]
[370346994,1751971866514,-460.0,0.00027965,3]
[370346995,1751971866523,-460.0,0.00027965,3]
[370346996,1751971866532,-460.0,0.00027965,3]
[370346997,1751971866542,-460.0,0.00027965,3]
[370346998,1751971866551,-460.0,0.00027965,3]
[370346999,1751971866561,-460.0,0.00027965,3]
[370347000,1751971866570,-626.52,0.00027965,3]
[370347001,1751971866580,-151.0,0.00027965,7]
[370347002,1751971866589,-460.0,0.00027965,3]
[370347003,1751971866598,-690.39,0.00027965,3]
[370347004,1751971866607,-218.519569,0.00027965,7]
[370347005,1751971866617,-151.0,0.00027965,7]
[370347006,1751971866626,-460.0,0.00027965,3]
[370347007,1751971866636,-460.0,0.00027965,3]
[370347008,1751971866645,-400.81031954,0.00027965,3]
[370347009,1751971866654,-460.0,0.00027965,3]
[370347010,1751971866663,-460.0,0.00027965,3]
[370347011,1751971866672,-1092.65,0.00027965,3]
[370347012,1751971866681,-378092.92285844,0.00027966,15]
[370347013,1751971867858,-460.0,0.00027397,3]
[370347014,1751971867868,-460.0,0.00027397,3]
[370347015,1751971867878,-460.0,0.00027671,3]
[370347016,1751971867887,-460.0,0.00027945,3]
[370347017,1751971867897,-732.4346,0.00027966,15]
[370347018,1751971867913,-797065.650121,0.00027966,15]
[370347019,1751971867924,-3560.63018925,0.00027966,15]
[370347020,1751971867935,-151.0,0.00027966,7]
[370347021,1751971867945,-151.0,0.00027966,7]
[370347022,1751971867955,-151.0,0.00027966,7]
[370347023,1751971867965,-313.100147,0.00027966,7]
[370347024,1751971867976,-313.100147,0.00027966,7]
[370347025,1751971867987,-313.100147,0.00027966,7]
[370347026,1751971867998,-313.100147,0.00027966,7]
[370347027,1751971868009,-151.0,0.00027966,7]
[370347028,1751971868019,-151.0,0.00027966,7]
[370347029,1751971868029,-151.0,0.00027966,7]
[370347030,1751971868039,-150.0,0.00027966,7]
[370347031,1751971868055,-500.0,0.00027966,7]
[370347032,1751971868065,-530.464929,0.00027966,7]
[370347033,1751971868075,-151.0,0.00027966,7]
[370347034,1751971868084,-530.464929,0.00027966,7]
[370347035,1751971868094,-500.0,0.00027966,3]
[370347036,1751971868104,-500.0,0.00027966,7]
[370347037,1751971868115,-425.0,0.00027966,7]
[370347038,1751971868125,-500.0,0.00027966,7]
[370347039,1751971868135,-200.0,0.00027966,7]
[370347040,1751971868144,-150.0,0.00027966,7]
[370347041,1751971868154,-500.0,0.00027966,7]
[370347042,1751971868164,-150.0,0.00027966,7]
[370347043,1751971868174,-345.370459,0.00027966,7]
[370347044,1751971868184,-345.370459,0.00027966,7]
[370347045,1751971868197,-345.370459,0.00027966,7]
[370347046,1751971868207,-345.370459,0.00027966,7]
[370347047,1751971868217,-151.0,0.00027966,7]
[370347048,1751971868230,-153.807953,0.00027966,7]
[370347049,1751971868240,-173.407844,0.00027966,7]
[370347050,1751971868249,-173.407844,0.00027966,7]
[370347051,1751971868259,-203.059213,0.00027966,7]
[370347052,1751971868268,-203.059213,0.00027966,7]
[370347053,1751971868278,-151.0,0.00027966,7]
[370347054,1751971868287,-151.0,0.00027966,7]
[370347055,1751971868297,-8930.4269505,0.00027966,2]
[370347056,1751971868307,-977.332697,0.00027966,7]
[370347057,1751971868316,-955.1,0.00027966,3]
[370347058,1751971868326,-977.332697,0.00027966,7]
[370347059,1751971868335,-595.238465,0.00027966,7]
[370347060,1751971868345,-595.238465,0.00027966,7]
[370347061,1751971868355,-151.0,0.00027966,7]
[370347062,1751971868365,-151.0,0.00027966,7]
[370347063,1751971868376,-151.0,0.00027966,7]
[370347064,1751971868385,-265846.2999619,0.00027966,2]
[370347065,1751971868395,-3707.3666727,0.00027966,2]
[370347066,1751971868405,-310.48623,0.00027966,7]
[370347067,1751971868416,-310.48623,0.00027966,7]
[370347068,1751971868425,-865.0,0.00027966,7]
[370347069,1751971868435,-13970.2622751,0.00027966,2]
[370347070,1751971868445,-500.0,0.00027966,7]
[370347071,1751971868454,-151.0,0.00027966,7]
[370347072,1751971868464,-1654.0990526,0.00027966,2]
[370347073,1751971868473,-151.0,0.00027966,7]
[370347074,1751971868483,-2311.674624,0.00027966,7]
[370347075,1751971868492,-2311.674624,0.00027966,7]
[370347076,1751971868502,-151.0,0.00027966,7]
[370347077,1751971868511,-151.0,0.00027966,7]
[370347078,1751971868521,-151.0,0.00027966,7]
[370347079,1751971868531,-150.0,0.00027966,7]
[370347080,1751971868540,-500.0,0.00027966,7]
[370347081,1751971868550,-500.0,0.00027966,7]
[370347082,1751971868792,-856.197115,0.00027966,7]
[370347083,1751971868826,-856.197115,0.00027966,7]
[370347084,1751971868835,-856.197115,0.00027966,7]
[370347085,1751971868845,-856.197115,0.00027966,7]
[370347086,1751971868856,-181.804378,0.00027967,7]
[370347087,1751971868866,-181.804378,0.00027967,7]
[370347088,1751971868875,-151.0,0.00027967,7]
[370347089,1751971868885,-209.754586,0.00027967,7]
[370347090,1751971868894,-151.0,0.00027967,7]
[370347091,1751971868904,-151.0,0.00027967,7]
[370347092,1751971868915,-151.0,0.00027967,7]
[370347093,1751971868926,-234.555655,0.00027967,7]
[370347094,1751971868936,-234.555655,0.00027967,7]
[370347095,1751971868945,-151.0,0.00027967,7]
[370347096,1751971868955,-171.164662,0.00027967,7]
[370347097,1751971868964,-171.164662,0.00027967,7]
[370347098,1751971868974,-151.0,0.0002797,7]
[370347099,1751971868984,-151.0,0.0002797,7]
[370347100,1751971868994,-500.0,0.00027971,3]
[370347101,1751971869003,-500.0,0.00027971,3]
[370347102,1751971869012,-151.0,0.00027972,7]
[370347103,1751971869022,-500.0,0.00027972,3]
[370347104,1751971869031,-151.0,0.00027972,7]
[370347105,1751971869040,-500.0,0.00027972,2]
[370347106,1751971869055,-151.0,0.00027972,7]
[370347107,1751971869064,-537.58,0.00027972,3]
[370347108,1751971869074,-687.157417,0.00027972,7]
[370347109,1751971869083,-687.157417,0.00027972,7]
[370347110,1751971869097,-500.0,0.00027972,3]
[370347111,1751971869107,-500.0,0.00027973,5]
[370347112,1751971869117,-500.0,0.00027973,5]
[370347113,1751971869128,-500.0,0.00027973,5]
[370347114,1751971869138,-500.0,0.00027973,5]
[370347115,1751971869148,-608.43587559,0.00027973,5]
[370347116,1751971869157,-205.6546453,0.00027973,5]
[370347117,1751971869167,-500.0,0.00027973,5]
[370347118,1751971869176,-569.25462117,0.00027973,5]
[370347119,1751971869186,-500.0,0.00027973,5]
[370347120,1751971869195,-500.0,0.00027973,5]
[370347121,1751971869205,-504.55339788,0.00027973,5]
[370347122,1751971869215,-505.33621728,0.00027973,5]
[370347123,1751971869224,-500.0,0.00027973,5]
[370347124,1751971869233,-500.85111625,0.00027973,5]
[370347125,1751971869242,-500.0,0.00027973,5]
[370347126,1751971869252,-500.0,0.00027973,5]
[370347127,1751971869262,-500.0,0.00027973,5]
[370347128,1751971869272,-500.0,0.00027973,5]
[370347129,1751971869281,-163.70561704,0.00027973,5]
[370347130,1751971869291,-151.0,0.00027973,7]
[370347131,1751971869299,-151.0,0.00027973,7]
[370347132,1751971869309,-151.0,0.00027973,7]
[370347133,1751971869318,-181.804378,0.00027973,7]
[370347134,1751971869327,-181.804378,0.00027973,7]
[370347135,1751971869336,-181.804378,0.00027973,7]
[370347136,1751971869345,-181.804378,0.00027973,7]
[370347137,1751971869354,-151.0,0.00027973,7]
[370347138,1751971869364,-151.0,0.00027973,7]
[370347139,1751971869373,-460.0,0.00027973,3]
[370347140,1751971869382,-571.6,0.00027973,3]
[370347141,1751971869391,-460.0,0.00027973,3]
[370347142,1751971869400,-151.0,0.00027973,7]
[370347143,1751971869410,-151.0,0.00027973,7]
[370347144,1751971869419,-460.0,0.00027973,3]
[370347145,1751971869428,-460.0,0.00027973,3]
[370347146,1751971869437,-460.0,0.00027973,3]
[370347147,1751971869446,-151.0,0.00027973,7]
[370347148,1751971869455,-460.0,0.00027973,3]
[370347149,1751971869465,-460.0,0.00027973,3]
[370347150,1751971869474,-151.0,0.00027973,7]
[370347151,1751971869483,-151.0,0.00027973,7]
[370347152,1751971869493,-532.26382205,0.00027973,3]
[370347153,1751971869502,-460.0,0.00027973,3]
[370347154,1751971869512,-259.174458,0.00027973,7]
[370347155,1751971869521,-234.555655,0.00027973,7]
[370347156,1751971869530,-234.555655,0.00027973,7]
[370347157,1751971869540,-234.555655,0.00027973,7]
[370347158,1751971869549,-234.555655,0.00027973,7]
[370347159,1751971869558,-460.0,0.00027973,3]
[370347160,1751971869567,-460.0,0.00027973,3]
[370347161,1751971869576,-151.0,0.00027973,7]
[370347162,1751971869585,-460.0,0.00027973,3]
[370347163,1751971869595,-151.0,0.00027973,7]
[370347164,1751971869604,-151.045284,0.00027973,7]
[370347165,1751971869614,-171.164662,0.00027973,7]
[370347166,1751971869623,-460.0,0.00027973,3]
[370347167,1751971869632,-460.0,0.00027973,3]
[370347168,1751971869641,-171.164662,0.00027973,7]
[370347169,1751971869650,-460.0,0.00027973,3]
[370347170,1751971869660,-460.0,0.00027973,3]
[370347171,1751971869670,-460.0,0.00027973,3]
[370347172,1751971869679,-542.70855814,0.00027973,3]
[370347173,1751971869689,-460.0,0.00027973,3]
[370347174,1751971869698,-460.0,0.00027973,3]
[370347175,1751971869708,-151.0,0.00027973,7]
[370347176,1751971869718,-460.0,0.00027973,3]
[370347177,1751971869728,-151.0,0.00027973,7]
[370347178,1751971869737,-687.157417,0.00027973,7]
[370347179,1751971869747,-687.157417,0.00027973,7]
[370347180,1751971869756,-1678.71,0.00027973,3]
[370347181,1751971869766,-1522.38,0.00027973,3]
[370347182,1751971869775,-2194.8,0.00027973,3]
[370347183,1751971869784,-300.0,0.00027973,2]
[370347184,1751971869793,-1738.62,0.00027973,3]
[370347185,1751971869803,-824.79,0.00027973,3]
[370347186,1751971869812,-1189.17,0.00027973,3]
[370347187,1751971869821,-2200.64,0.00027973,3]
[370347188,1751971869830,-460.0,0.00027973,3]
[370347189,1751971869840,-676.12,0.00027973,3]
[370347190,1751971869849,-460.0,0.00027973,3]
[370347191,1751971869858,-3033.6,0.00027973,3]
[370347192,1751971869869,-599.27,0.00027973,3]
[370347193,1751971869878,-3027.03,0.00027973,3]
[370347194,1751971869887,-601.75,0.00027973,3]
[370347195,1751971869896,-3395.38,0.00027973,3]
[370347196,1751971869905,-1370.09,0.00027973,3]
[370347197,1751971869914,-1472.31,0.00027973,3]
[370347198,1751971869923,-1083.0,0.00027973,3]
[370347199,1751971869933,-1483.21,0.00027973,3]
[370347200,1751971869942,-1700.53,0.00027973,3]
[370347201,1751971869951,-617.11,0.00027973,3]
[370347202,1751971869960,-1199.43,0.00027973,3]
[370347203,1751971869969,-9891.42,0.00027973,3]
[370347204,1751971869978,-1373.25,0.00027973,3]